[Event "Mitropa Cup Open 2019"]
[Site "Radenci"]
[Date "2019.05.30"]
[Round "4.18"]
[White "Sonis, Francesco"]
[Black "Vykouk, Jan"]
[Result "0-1"]
[ECO "C07"]
[WhiteElo "2475"]
[BlackElo "2451"]
[Annotator "ChessBase"]
[PlyCount "100"]
[EventDate "2019.05.27"]
[EventType "team-tourn"]
[EventCountry "SLO"]
[SourceTitle "playchess.com"]
[Source "ChessBase"]
[SourceQuality "1"]
[WhiteTeam "Italy"]
[BlackTeam "Czech Republic"]
[WhiteTeamCountry "ITA"]
[BlackTeamCountry "CZE"]
[TimeControl "40/5400+30:1800+30"]

1. d4 {[%emt 0:00:00]} e6 {[%emt 0:00:00]} 2. e4 {[%emt 0:00:00]} d5 {[%emt 0:00:00]} 3. Nd2 {[%emt 0:00:00]} c5 {[%emt 0:00:18]} 4. dxc5 {[%emt 0:00:00]} Bxc5 {[%emt 0:01:30]} 5. exd5 {[%emt 0:00:01]} Qxd5 {[%emt 0:02:00]} 6. Ngf3 {[%emt 0:00:09]} Nf6 {[%emt 0:00:30]} 7. Bc4 {[%emt 0:01:13]} Qh5 {[%emt 0:02:01]} 8. O-O {[%emt 0:02:45]} O-O {[%emt 0:00:05]} 9. Qe2 {[%emt 0:00:45]} a6 {[%emt 0:06:54]} 10. Ne4 {[%emt 0:07:00]} Nxe4 {[%emt 0:00:07]} 11. Qxe4 {[%emt 0:00:03]} Nd7 {[%emt 0:00:19]} 12. Bg5 {[%emt 0:04:10]} Qg6 {[%emt 0:10:05]} 13. Qe2 {[%emt 0:06:07]} b5 {[%emt 0:00:15]} 14. Bd3 {[%emt 0:00:33]} f5 {[%emt 0:00:12]} 15. Be3 {[%emt 0:16:17]} Bb7 {[%emt 0:02:07]} 16. Rfe1 {[%emt 0:05:29]} Be7 {[%emt 0:10:00]} 17. Bf4 {[%emt 0:17:04]} e5 {[%emt 0:00:30]} 18. Bxe5 {[%emt 0:00:04]} Nxe5 {[%emt 0:00:05]} 19. Qxe5 {[%emt 0:00:03]} Bxf3 {[%emt 0:00:08]} 20. Qe6+ {[%emt 0:00:03]} Qxe6 {[%emt 0:00:13]} 21. Rxe6 {[%emt 0:00:04]} Kf7 {[%emt 0:00:15]} 22. Rae1 {[%emt 0:00:04]} Be4 {[%emt 0:00:15]} 23. Bxe4 {[%emt 0:00:06]} fxe4 {[%emt 0:00:09]} 24. R6xe4 {[%emt 0:00:03]} Bf6 {[%emt 0:00:12]} 25. c3 {[%emt 0:00:38]} Rfe8 {[%emt 0:01:07]} 26. Kf1 {[%emt 0:00:09]} Rxe4 {[%emt 0:00:56]} 27. Rxe4 {[%emt 0:00:03]} Re8 {[%emt 0:00:06]} 28. Rf4 {[%emt 0:00:02]} Re5 {[%emt 0:01:09]} 29. a4 {[%emt 0:00:53]} Ke6 {[%emt 0:00:53]} 30. h4 {[%emt 0:06:24]} Kd5 {[%emt 0:01:21]} 31. axb5 {[%emt 0:05:07]} axb5 {[%emt 0:00:05]} 32. Rb4 {[%emt 0:03:26]} Kc5 {[%emt 0:00:28]} 33. g3 {[%emt 0:00:03]} Re6 {[%emt 0:00:35]} 34. Rf4 {[%emt 0:00:28]} Kb6 {[%emt 0:04:28]} 35. Rf5 {[%emt 0:04:13]} Re4 {[%emt 0:00:46]} 36. Rd5 {[%emt 0:01:52]} Kc6 {[%emt 0:00:23]} 37. Rd2 {[%emt 0:00:57]} Kc5 {[%emt 0:03:40]} 38. f3 {[%emt 0:00:29]} Re7 {[%emt 0:00:40]} 39. Kf2 {[%emt 0:00:42]} Kc4 {[%emt 0:00:07]} 40. f4 {[%emt 0:00:00]} h5 {[%emt 0:00:00]} 41. Kf3 {[%emt 0:01:46]} Re8 {[%emt 0:05:51]} 42. Rd7 {[%emt 0:00:48]} Rb8 {[%emt 0:00:40]} 43. Ke4 {[%emt 0:00:34]} Kb3 {[%emt 0:00:10]} 44. Rd2 {[%emt 0:00:59]} Rd8 {[%emt 0:01:55]} 45. Rg2 {[%emt 0:00:06]} Rd1 {[%emt 0:00:06]} 46. Kf5 {[%emt 0:01:28]} Rb1 {[%emt 0:00:08]} 47. g4 {[%emt 0:00:02]} hxg4 {[%emt 0:01:25]} 48. h5 {[%emt 0:00:15]} Rxb2 {[%emt 0:00:38]} 49. Rxb2+ {[%emt 0:00:04]} Kxb2 {[%emt 0:00:05]} 50. h6 {[%emt 0:00:01]} gxh6 {[%emt 0:00:18]} 0-1

[Event "Mitropa Cup Open 2019"]
[Site "Radenci"]
[Date "2019.05.30"]
[Round "4.19"]
[White "Kraus, Tomas"]
[Black "Shytaj, Luca"]
[Result "1/2-1/2"]
[ECO "B91"]
[WhiteElo "2463"]
[BlackElo "2490"]
[Annotator "ChessBase"]
[PlyCount "153"]
[EventDate "2019.05.27"]
[EventType "team-tourn"]
[EventCountry "SLO"]
[SourceTitle "playchess.com"]
[Source "ChessBase"]
[SourceQuality "1"]
[WhiteTeam "CZE"]
[BlackTeam "ITA"]
[WhiteTeamCountry "CZE"]
[TimeControl "40/5400+30:1800+30"]

1. e4 {[%emt 0:00:00]} c5 {[%emt 0:00:00]} 2. Nf3 {[%emt 0:00:00]} d6 {[%emt 0:00:00]} 3. Nc3 {[%emt 0:00:45]} a6 {[%emt 0:00:07]} 4. g3 {[%emt 0:01:25]} Nc6 {[%emt 0:01:05]} 5. Bg2 {[%emt 0:03:11]} g6 {[%emt 0:00:55]} 6. d4 {[%emt 0:01:34]} cxd4 {[%emt 0:03:40]} 7. Nxd4 {[%emt 0:00:06]} Bd7 {[%emt 0:04:18]} 8. Be3 {[%emt 0:03:38]} Nf6 {[%emt 0:03:07]} 9. h3 {[%emt 0:00:11]} Bg7 {[%emt 0:05:49]} 10. O-O {[%emt 0:02:46]} O-O {[%emt 0:03:56]} 11. Nde2 {[%emt 0:05:13]} Rc8 {[%emt 0:27:15]} 12. b3 {[%emt 0:05:08]} b5 {[%emt 0:01:39]} 13. Nd5 {[%emt 0:21:24]} Be6 {[%emt 0:10:45]} 14. Qd2 {[%emt 0:03:00]} Nd7 {[%emt 0:02:22]} 15. Rad1 {[%emt 0:01:10]} Nc5 {[%emt 0:01:43]} 16. Kh2 {[%emt 0:06:29]} f5 {[%emt 0:03:16]} 17. exf5 {[%emt 0:01:04]} Bxf5 {[%emt 0:02:10]} 18. g4 {[%emt 0:04:39]} Be6 {[%emt 0:00:58]} 19. f4 {[%emt 0:02:48]} Bf7 {[%emt 0:00:18]} 20. Bf2 {[%emt 0:03:43]} Nd7 {[%emt 0:05:11]} 21. Bh4 {[%emt 0:03:02]} Nb6 {[%emt 0:01:01]} 22. Nec3 {[%emt 0:08:24]} b4 {[%emt 0:01:18]} 23. Nxb6 {[%emt 0:02:03]} Qxb6 {[%emt 0:00:12]} 24. Nd5 {[%emt 0:00:52]} Qa5 {[%emt 0:01:23]} 25. Bxe7 {[%emt 0:02:21]} Qxa2 {[%emt 0:07:01]} 26. Bxf8 {[%emt 0:01:06]} Rxf8 {[%emt 0:00:32]} 27. g5 {[%emt 0:02:22]} Nd4 {[%emt 0:01:06]} 28. Nf6+ {[%emt 0:02:34]} Bxf6 {[%emt 0:00:06]} 29. gxf6 {[%emt 0:00:02]} Nf5 {[%emt 0:00:16]} 30. Be4 {[%emt 0:03:44]} Qa5 {[%emt 0:02:24]} 31. Ra1 {[%emt 0:01:31]} Qc5 {[%emt 0:00:31]} 32. Rxa6 {[%emt 0:00:59]} Be6 {[%emt 0:00:41]} 33. Rc6 {[%emt 0:02:50]} Qa5 {[%emt 0:00:51]} 34. Qd3 {[%emt 0:03:06]} Rxf6 {[%emt 0:01:25]} 35. Qa6 {[%emt 0:01:37]} Qd8 {[%emt 0:00:27]} 36. Bd5 {[%emt 0:00:36]} Kg7 {[%emt 0:01:12]} 37. Bg2 {[%emt 0:01:13]} Rf7 {[%emt 0:01:23]} 38. Qa1+ {[%emt 0:00:15]} Kh6 {[%emt 0:01:06]} 39. Qe1 {[%emt 0:01:38]} Bd7 {[%emt 0:00:19]} 40. Ra6 {[%emt 0:00:00]} Bb5 {[%emt 0:00:00]} 41. Ra8 {[%emt 0:02:09]} Qf6 {[%emt 0:02:49]} 42. Rf2 {[%emt 0:04:18]} Qh4 {[%emt 0:05:39]} 43. Kg1 {[%emt 0:01:32]} Qg3 {[%emt 0:01:11]} 44. Rc8 {[%emt 0:11:57]} Re7 {[%emt 0:07:54]} 45. Qxb4 {[%emt 0:02:06]} Nh4 {[%emt 0:05:28]} 46. Qxb5 {[%emt 0:07:01]} Re1+ {[%emt 0:00:32]} 47. Qf1 {[%emt 0:00:04]} Rxf1+ {[%emt 0:00:37]} 48. Kxf1 {[%emt 0:00:04]} Qe3 {[%emt 0:01:19]} 49. Rc7 {[%emt 0:02:01]} Qc1+ {[%emt 0:00:34]} 50. Ke2 {[%emt 0:00:04]} Nf5 {[%emt 0:00:11]} 51. Rc3 {[%emt 0:02:10]} Nd4+ {[%emt 0:02:21]} 52. Kd3 {[%emt 0:00:01]} Ne6 {[%emt 0:01:47]} 53. Rc4 {[%emt 0:00:39]} Qd1+ {[%emt 0:02:10]} 54. Rd2 {[%emt 0:00:30]} Qe1 {[%emt 0:01:06]} 55. Kc3 {[%emt 0:01:36]} Nxf4 {[%emt 0:01:41]} 56. Rxf4 {[%emt 0:01:21]} Qe3+ {[%emt 0:00:08]} 57. Rd3 {[%emt 0:00:20]} Qxf4 {[%emt 0:00:08]} 58. Bd5 {[%emt 0:00:17]} Qf6+ {[%emt 0:01:34]} 59. Kc4 {[%emt 0:00:56]} Qb2 {[%emt 0:00:56]} 60. c3 {[%emt 0:00:38]} Kg5 {[%emt 0:00:28]} 61. Rf3 {[%emt 0:00:51]} Kh4 {[%emt 0:00:37]} 62. Kb5 {[%emt 0:00:20]} g5 {[%emt 0:00:40]} 63. b4 {[%emt 0:00:46]} h5 {[%emt 0:01:31]} 64. c4 {[%emt 0:00:07]} g4 {[%emt 0:00:44]} 65. hxg4 {[%emt 0:00:04]} hxg4 {[%emt 0:00:06]} 66. Rf8 {[%emt 0:00:30]} Kg5 {[%emt 0:00:23]} 67. Ka5 {[%emt 0:01:45]} g3 {[%emt 0:00:56]} 68. b5 {[%emt 0:00:38]} Qg7 {[%emt 0:00:55]} 69. Re8 {[%emt 0:00:41]} Qa7+ {[%emt 0:00:29]} 70. Kb4 {[%emt 0:00:05]} Qd4 {[%emt 0:01:45]} 71. Rg8+ {[%emt 0:00:17]} Kf4 {[%emt 0:00:41]} 72. Ka5 {[%emt 0:00:12]} Qa7+ {[%emt 0:01:10]} 73. Kb4 {[%emt 0:00:01]} Qb6 {[%emt 0:00:15]} 74. Ka4 {[%emt 0:00:44]} Qd4 {[%emt 0:02:03]} 75. Ka5 {[%emt 0:00:23]} Qa7+ {[%emt 0:00:26]} 76. Kb4 {[%emt 0:00:02]} Qc5+ {[%emt 0:02:27]} 77. Ka5 {[%emt 0:00:04]} 1/2-1/2

[Event "Mitropa Cup Open 2019"]
[Site "Radenci"]
[Date "2019.05.31"]
[Round "5.2"]
[White "Nagy, Gabor"]
[Black "Shytaj, Luca"]
[Result "1-0"]
[ECO "A13"]
[WhiteElo "2471"]
[BlackElo "2490"]
[Annotator "ChessBase"]
[PlyCount "65"]
[EventDate "2019.05.27"]
[EventType "team-tourn"]
[EventCountry "SLO"]
[SourceTitle "playchess.com"]
[Source "ChessBase"]
[SourceQuality "1"]
[WhiteTeam "HUN"]
[BlackTeam "ITA"]
[WhiteTeamCountry "HUN"]
[TimeControl "40/5400+30:1800+30"]

1. Nf3 {[%emt 0:00:00]} Nf6 {[%emt 0:00:00]} 2. c4 {[%emt 0:00:23]} e6 {[%emt 0:00:00]} 3. g3 {[%emt 0:00:40]} a6 {[%emt 0:00:24]} 4. Bg2 {[%emt 0:00:41]} b5 {[%emt 0:00:35]} 5. b3 {[%emt 0:00:24]} Bb7 {[%emt 0:00:27]} 6. O-O {[%emt 0:00:16]} Be7 {[%emt 0:01:10]} 7. Nc3 {[%emt 0:03:03]} b4 {[%emt 0:08:46]} 8. Na4 {[%emt 0:01:03]} O-O {[%emt 0:01:49]} 9. d4 {[%emt 0:00:52]} Be4 {[%emt 0:06:37]} 10. Ne5 {[%emt 0:03:51]} Bxg2 {[%emt 0:01:55]} 11. Kxg2 {[%emt 0:00:08]} a5 {[%emt 0:01:58]} 12. e3 {[%emt 0:03:14]} d6 {[%emt 0:04:02]} 13. Qf3 {[%emt 0:01:44]} Ra6 {[%emt 0:00:41]} 14. Nd3 {[%emt 0:00:49]} Nfd7 {[%emt 0:04:06]} 15. Bb2 {[%emt 0:04:17]} Nb6 {[%emt 0:06:52]} 16. Nxb6 {[%emt 0:00:42]} cxb6 {[%emt 0:00:11]} 17. Qe2 {[%emt 0:04:22]} Ra7 {[%emt 0:04:51]} 18. e4 {[%emt 0:01:07]} Nd7 {[%emt 0:08:33]} 19. f4 {[%emt 0:00:37]} b5 {[%emt 0:01:06]} 20. f5 {[%emt 0:06:10]} bxc4 {[%emt 0:01:39]} 21. bxc4 {[%emt 0:00:54]} Nb6 {[%emt 0:02:26]} 22. fxe6 {[%emt 0:00:28]} fxe6 {[%emt 0:02:23]} 23. Nf4 {[%emt 0:08:53]} Qc8 {[%emt 0:08:56]} 24. c5 {[%emt 0:04:12]} dxc5 {[%emt 0:01:34]} 25. dxc5 {[%emt 0:00:14]} Bxc5 {[%emt 0:05:54]} 26. Rac1 {[%emt 0:00:10]} Na4 {[%emt 0:01:31]} 27. Bd4 {[%emt 0:05:38]} Rc7 {[%emt 0:05:57]} 28. Be5 {[%emt 0:00:37]} Bd6 {[%emt 0:02:35]} 29. Rxc7 {[%emt 0:00:11]} Bxc7 {[%emt 0:00:31]} 30. Bxc7 {[%emt 0:00:27]} g5 {[%emt 0:01:39]} 31. Qg4 {[%emt 0:02:50]} Rf7 {[%emt 0:01:10]} 32. Nd5 {[%emt 0:03:10]} Rxc7 {[%emt 0:00:36]} 33. Nxc7 {[%emt 0:00:22]} 1-0

[Event "Mitropa Cup Open 2019"]
[Site "Radenci"]
[Date "2019.05.31"]
[Round "5.3"]
[White "Lodici, Lorenzo"]
[Black "Kozak, Adam"]
[Result "1/2-1/2"]
[ECO "E15"]
[WhiteElo "2453"]
[BlackElo "2458"]
[Annotator "ChessBase"]
[PlyCount "60"]
[EventDate "2019.05.27"]
[EventType "team-tourn"]
[EventCountry "SLO"]
[SourceTitle "playchess.com"]
[Source "ChessBase"]
[SourceQuality "1"]
[WhiteTeam "Italy"]
[BlackTeam "Hungary"]
[WhiteTeamCountry "ITA"]
[BlackTeamCountry "HUN"]
[TimeControl "40/5400+30:1800+30"]

1. d4 {[%emt 0:00:00]} Nf6 {[%emt 0:00:00]} 2. c4 {[%emt 0:00:00]} e6 {[%emt 0:00:00]} 3. g3 {[%emt 0:00:00]} Bb4+ {[%emt 0:00:06]} 4. Bd2 {[%emt 0:00:00]} Be7 {[%emt 0:00:05]} 5. Bg2 {[%emt 0:00:00]} d5 {[%emt 0:00:05]} 6. Nf3 {[%emt 0:00:11]} O-O {[%emt 0:00:09]} 7. O-O {[%emt 0:00:04]} Nbd7 {[%emt 0:00:07]} 8. Qc2 {[%emt 0:00:04]} c6 {[%emt 0:00:09]} 9. Rd1 {[%emt 0:00:03]} b6 {[%emt 0:00:44]} 10. b3 {[%emt 0:00:04]} Ba6 {[%emt 0:02:42]} 11. Bc1 {[%emt 0:05:47]} Rc8 {[%emt 0:01:46]} 12. Bb2 {[%emt 0:00:05]} Qc7 {[%emt 0:11:25]} 13. Nc3 {[%emt 0:10:02]} dxc4 {[%emt 0:01:43]} 14. e4 {[%emt 0:02:09]} Rfd8 {[%emt 0:04:55]} 15. Nd2 {[%emt 0:29:37]} b5 {[%emt 0:05:06]} 16. bxc4 {[%emt 0:03:03]} bxc4 {[%emt 0:01:05]} 17. Na4 {[%emt 0:00:04]} c5 {[%emt 0:04:42]} 18. d5 {[%emt 0:00:26]} exd5 {[%emt 0:00:07]} 19. exd5 {[%emt 0:00:04]} Nb6 {[%emt 0:01:12]} 20. Nxb6 {[%emt 0:00:46]} axb6 {[%emt 0:01:02]} 21. Nxc4 {[%emt 0:02:50]} Bxc4 {[%emt 0:01:35]} 22. Qxc4 {[%emt 0:00:03]} Ne8 {[%emt 0:01:58]} 23. a4 {[%emt 0:09:10]} Bf6 {[%emt 0:02:09]} 24. Bxf6 {[%emt 0:01:11]} Nxf6 {[%emt 0:00:36]} 25. Qb5 {[%emt 0:09:56]} h6 {[%emt 0:05:24]} 26. a5 {[%emt 0:06:28]} bxa5 {[%emt 0:03:15]} 27. Rxa5 {[%emt 0:00:26]} c4 {[%emt 0:02:29]} 28. Rc1 {[%emt 0:01:39]} c3 {[%emt 0:05:21]} 29. Ra6 {[%emt 0:03:52]} Qe5 {[%emt 0:02:17]} 30. Rc6 {[%emt 0:00:28]} Qd4 {[%emt 0:14:16]} 1/2-1/2

[Event "Mitropa Cup Open 2019"]
[Site "Radenci"]
[Date "2019.05.31"]
[Round "5.4"]
[White "Csonka, Balazs"]
[Black "Di Benedetto, Edoardo"]
[Result "1-0"]
[ECO "E05"]
[WhiteElo "2466"]
[BlackElo "2404"]
[Annotator "ChessBase"]
[PlyCount "75"]
[EventDate "2019.05.27"]
[EventType "team-tourn"]
[EventCountry "SLO"]
[SourceTitle "playchess.com"]
[Source "ChessBase"]
[SourceQuality "1"]
[WhiteTeam "HUN"]
[BlackTeam "ITA"]
[BlackTeamCountry "ITA"]
[TimeControl "40/5400+30:1800+30"]

1. d4 {[%emt 0:00:00]} d5 {[%emt 0:00:11]} 2. c4 {[%emt 0:00:00]} e6 {[%emt 0:00:08]} 3. Nf3 {[%emt 0:00:00]} Nf6 {[%emt 0:00:09]} 4. g3 {[%emt 0:00:22]} Be7 {[%emt 0:00:09]} 5. Bg2 {[%emt 0:00:08]} O-O {[%emt 0:01:38]} 6. O-O {[%emt 0:00:23]} dxc4 {[%emt 0:00:08]} 7. Qc2 {[%emt 0:00:49]} a6 {[%emt 0:07:17]} 8. a4 {[%emt 0:01:25]} Bd7 {[%emt 0:04:08]} 9. Rd1 {[%emt 0:15:01]} Bc6 {[%emt 0:04:31]} 10. Nc3 {[%emt 0:00:15]} Nbd7 {[%emt 0:05:44]} 11. e4 {[%emt 0:03:47]} b5 {[%emt 0:07:32]} 12. d5 {[%emt 0:09:38]} exd5 {[%emt 0:09:49]} 13. e5 {[%emt 0:00:51]} Ne4 {[%emt 0:01:59]} 14. Nxd5 {[%emt 0:03:54]} Bxd5 {[%emt 0:00:26]} 15. Rxd5 {[%emt 0:00:11]} Nec5 {[%emt 0:00:16]} 16. axb5 {[%emt 0:12:44]} Qe8 {[%emt 0:13:41]} 17. Rd1 {[%emt 0:24:17]} Nd3 {[%emt 0:08:43]} 18. bxa6 {[%emt 0:01:09]} Bc5 {[%emt 0:00:58]} 19. Rf1 {[%emt 0:04:39]} Qe6 {[%emt 0:02:17]} 20. Ng5 {[%emt 0:03:06]} Qxe5 {[%emt 0:00:12]} 21. Bxa8 {[%emt 0:00:23]} Rxa8 {[%emt 0:00:26]} 22. Qxc4 {[%emt 0:01:40]} Nxf2 {[%emt 0:03:37]} 23. Kg2 {[%emt 0:01:20]} Qf5 {[%emt 0:04:52]} 24. Qf4 {[%emt 0:07:27]} Qd5+ {[%emt 0:06:03]} 25. Qf3 {[%emt 0:00:16]} Qxf3+ {[%emt 0:00:09]} 26. Nxf3 {[%emt 0:00:08]} Ne4 {[%emt 0:00:20]} 27. Bf4 {[%emt 0:01:59]} c6 {[%emt 0:00:13]} 28. Rfd1 {[%emt 0:00:46]} Nb6 {[%emt 0:01:43]} 29. Ne5 {[%emt 0:01:17]} g5 {[%emt 0:01:10]} 30. Bc1 {[%emt 0:00:26]} Re8 {[%emt 0:04:01]} 31. Nxc6 {[%emt 0:00:42]} Re6 {[%emt 0:00:06]} 32. Rd8+ {[%emt 0:02:12]} Kg7 {[%emt 0:00:09]} 33. b4 {[%emt 0:00:07]} Rxc6 {[%emt 0:02:59]} 34. bxc5 {[%emt 0:00:11]} Rxc5 {[%emt 0:00:04]} 35. a7 {[%emt 0:00:31]} Rc2+ {[%emt 0:00:37]} 36. Kg1 {[%emt 0:00:06]} Nc3 {[%emt 0:02:22]} 37. Be3 {[%emt 0:00:24]} Ne2+ {[%emt 0:00:08]} 38. Kh1 {[%emt 0:00:06]} 1-0

[Event "Mitropa Cup Open 2019"]
[Site "Radenci"]
[Date "2019.05.31"]
[Round "5.6"]
[White "Vykouk, Jan"]
[Black "Joie, Sebastien"]
[Result "1-0"]
[ECO "B04"]
[WhiteElo "2451"]
[BlackElo "2425"]
[Annotator "ChessBase"]
[PlyCount "131"]
[EventDate "2019.05.27"]
[EventType "team-tourn"]
[EventCountry "SLO"]
[SourceTitle "playchess.com"]
[Source "ChessBase"]
[SourceQuality "1"]
[WhiteTeam "Czech Republic"]
[BlackTeam "France"]
[WhiteTeamCountry "CZE"]
[BlackTeamCountry "FRA"]
[TimeControl "40/5400+30:1800+30"]

1. e4 {[%emt 0:00:00]} Nf6 {[%emt 0:00:00]} 2. e5 {[%emt 0:00:00]} Nd5 {[%emt 0:00:00]} 3. d4 {[%emt 0:00:21]} d6 {[%emt 0:00:00]} 4. Nf3 {[%emt 0:00:04]} g6 {[%emt 0:00:00]} 5. Bc4 {[%emt 0:01:01]} Nb6 {[%emt 0:00:00]} 6. Bb3 {[%emt 0:00:07]} Bg7 {[%emt 0:00:03]} 7. O-O {[%emt 0:00:23]} O-O {[%emt 0:05:47]} 8. Re1 {[%emt 0:00:23]} dxe5 {[%emt 0:07:08]} 9. Nxe5 {[%emt 0:01:58]} Bxe5 {[%emt 0:00:25]} 10. dxe5 {[%emt 0:00:57]} Qxd1 {[%emt 0:00:07]} 11. Rxd1 {[%emt 0:00:04]} Nc6 {[%emt 0:00:04]} 12. Bh6 {[%emt 0:00:03]} Re8 {[%emt 0:00:19]} 13. Nc3 {[%emt 0:00:46]} Bf5 {[%emt 0:02:18]} 14. Bf4 {[%emt 0:01:53]} Red8 {[%emt 0:14:03]} 15. e6 {[%emt 0:06:47]} Bxe6 {[%emt 0:01:38]} 16. Bxe6 {[%emt 0:00:05]} fxe6 {[%emt 0:00:03]} 17. Bxc7 {[%emt 0:00:06]} Rxd1+ {[%emt 0:00:20]} 18. Rxd1 {[%emt 0:00:05]} Nc4 {[%emt 0:00:18]} 19. Bf4 {[%emt 0:02:41]} e5 {[%emt 0:04:29]} 20. Bg5 {[%emt 0:00:35]} Nd4 {[%emt 0:00:26]} 21. b3 {[%emt 0:02:48]} Nb6 {[%emt 0:04:37]} 22. Ne4 {[%emt 0:01:04]} Nxc2 {[%emt 0:12:03]} 23. Bxe7 {[%emt 0:00:07]} Nd4 {[%emt 0:00:16]} 24. Bf6 {[%emt 0:04:45]} Nc6 {[%emt 0:06:40]} 25. Nc5 {[%emt 0:03:38]} Rf8 {[%emt 0:03:56]} 26. Bg5 {[%emt 0:00:07]} Rf5 {[%emt 0:08:59]} 27. h4 {[%emt 0:01:18]} Rf7 {[%emt 0:02:34]} 28. Rd6 {[%emt 0:01:16]} Nd4 {[%emt 0:05:31]} 29. Rd8+ {[%emt 0:18:18]} Rf8 {[%emt 0:02:13]} 30. Rxf8+ {[%emt 0:00:20]} Kxf8 {[%emt 0:00:01]} 31. Nxb7 {[%emt 0:00:40]} Nd5 {[%emt 0:00:08]} 32. Nc5 {[%emt 0:00:09]} Kf7 {[%emt 0:00:48]} 33. f3 {[%emt 0:01:02]} Nf5 {[%emt 0:03:42]} 34. Kf2 {[%emt 0:01:45]} h6 {[%emt 0:00:30]} 35. Bd2 {[%emt 0:00:06]} Nxh4 {[%emt 0:01:50]} 36. Bxh6 {[%emt 0:00:05]} Nf5 {[%emt 0:00:01]} 37. Bd2 {[%emt 0:00:08]} Ke7 {[%emt 0:00:16]} 38. Ke2 {[%emt 0:00:54]} Nf4+ {[%emt 0:01:02]} 39. Bxf4 {[%emt 0:01:43]} exf4 {[%emt 0:00:06]} 40. Nd3 {[%emt 0:00:00]} g5 {[%emt 0:00:00]} 41. Nc5 {[%emt 0:00:33]} Kf6 {[%emt 0:12:10]} 42. Ne4+ {[%emt 0:00:20]} Kg6 {[%emt 0:00:00]} 43. b4 {[%emt 0:07:43]} Ne3 {[%emt 0:01:45]} 44. Kf2 {[%emt 0:08:14]} Nd1+ {[%emt 0:12:52]} 45. Kg1 {[%emt 0:00:04]} Nb2 {[%emt 0:04:25]} 46. b5 {[%emt 0:00:56]} Na4 {[%emt 0:01:37]} 47. Kh2 {[%emt 0:00:11]} Kf5 {[%emt 0:00:21]} 48. Nd6+ {[%emt 0:00:50]} Ke6 {[%emt 0:00:55]} 49. Nc8 {[%emt 0:00:00]} Nc3 {[%emt 0:00:19]} 50. Nxa7 {[%emt 0:00:00]} Nxa2 {[%emt 0:00:12]} 51. Kh3 {[%emt 0:01:04]} Nb4 {[%emt 0:00:27]} 52. Kg4 {[%emt 0:00:20]} Nd3 {[%emt 0:01:19]} 53. Kxg5 {[%emt 0:00:06]} Ne1 {[%emt 0:00:03]} 54. Kxf4 {[%emt 0:00:06]} Nxg2+ {[%emt 0:00:05]} 55. Ke4 {[%emt 0:00:03]} Kd6 {[%emt 0:00:07]} 56. Nc6 {[%emt 0:00:58]} Nh4 {[%emt 0:00:47]} 57. f4 {[%emt 0:00:35]} Kc5 {[%emt 0:00:31]} 58. Nd4 {[%emt 0:00:06]} Ng6 {[%emt 0:00:04]} 59. f5 {[%emt 0:00:14]} Nh8 {[%emt 0:00:16]} 60. f6 {[%emt 0:02:05]} Nf7 {[%emt 0:01:36]} 61. Kf4 {[%emt 0:01:07]} Kd6 {[%emt 0:13:08]} 62. Kf5 {[%emt 0:00:11]} Kd5 {[%emt 0:01:56]} 63. Kg6 {[%emt 0:01:36]} Ne5+ {[%emt 0:00:23]} 64. Kg7 {[%emt 0:00:05]} Kxd4 {[%emt 0:00:16]} 65. b6 {[%emt 0:00:04]} Kd5 {[%emt 0:00:23]} 66. b7 {[%emt 0:00:12]} 1-0

[Event "Mitropa Cup Open 2019"]
[Site "Radenci"]
[Date "2019.05.31"]
[Round "5.7"]
[White "Di Nicolantonio, Lucas"]
[Black "Kraus, Tomas"]
[Result "1/2-1/2"]
[ECO "B33"]
[WhiteElo "2379"]
[BlackElo "2463"]
[Annotator "ChessBase"]
[PlyCount "99"]
[EventDate "2019.05.27"]
[EventType "team-tourn"]
[EventCountry "SLO"]
[SourceTitle "playchess.com"]
[Source "ChessBase"]
[SourceQuality "1"]
[WhiteTeam "France"]
[BlackTeam "Czech Republic"]
[WhiteTeamCountry "FRA"]
[BlackTeamCountry "CZE"]
[TimeControl "40/5400+30:1800+30"]

1. e4 {[%emt 0:00:00]} c5 {[%emt 0:00:00]} 2. Nf3 {[%emt 0:00:00]} Nc6 {[%emt 0:00:00]} 3. d4 {[%emt 0:00:21]} cxd4 {[%emt 0:00:00]} 4. Nxd4 {[%emt 0:00:06]} Qb6 {[%emt 0:01:35]} 5. Nb3 {[%emt 0:01:13]} Nf6 {[%emt 0:00:12]} 6. Nc3 {[%emt 0:01:56]} e6 {[%emt 0:00:10]} 7. Qe2 {[%emt 0:02:53]} d6 {[%emt 0:05:43]} 8. Be3 {[%emt 0:02:02]} Qc7 {[%emt 0:00:08]} 9. O-O-O {[%emt 0:01:12]} h5 {[%emt 0:05:58]} 10. f4 {[%emt 0:08:09]} a6 {[%emt 0:01:17]} 11. g3 {[%emt 0:03:32]} b5 {[%emt 0:02:42]} 12. Bg2 {[%emt 0:00:42]} Bb7 {[%emt 0:01:59]} 13. h3 {[%emt 0:03:24]} Be7 {[%emt 0:05:29]} 14. g4 {[%emt 0:09:46]} O-O-O {[%emt 0:08:07]} 15. Kb1 {[%emt 0:09:01]} Kb8 {[%emt 0:01:11]} 16. Bf3 {[%emt 0:18:13]} hxg4 {[%emt 0:08:03]} 17. hxg4 {[%emt 0:00:08]} Nd7 {[%emt 0:00:12]} 18. Qf2 {[%emt 0:03:38]} g5 {[%emt 0:02:52]} 19. fxg5 {[%emt 0:01:04]} Nce5 {[%emt 0:02:16]} 20. Rh5 {[%emt 0:05:20]} Rhg8 {[%emt 0:01:48]} 21. a4 {[%emt 0:11:25]} b4 {[%emt 0:11:36]} 22. Na2 {[%emt 0:00:10]} Rc8 {[%emt 0:06:20]} 23. Rc1 {[%emt 0:08:35]} a5 {[%emt 0:03:29]} 24. Nd4 {[%emt 0:01:01]} Nc5 {[%emt 0:00:45]} 25. Nb5 {[%emt 0:02:03]} Qd7 {[%emt 0:09:04]} 26. Rd1 {[%emt 0:04:43]} Nxe4 {[%emt 0:10:08]} 27. Bxe4 {[%emt 0:00:05]} Bxe4 {[%emt 0:00:04]} 28. Rd2 {[%emt 0:00:33]} b3 {[%emt 0:06:25]} 29. Nac3 {[%emt 0:00:05]} bxc2+ {[%emt 0:00:03]} 30. Rxc2 {[%emt 0:00:04]} Nxg4 {[%emt 0:01:53]} 31. Ba7+ {[%emt 0:00:37]} Ka8 {[%emt 0:00:13]} 32. Qb6 {[%emt 0:02:34]} Bxc2+ {[%emt 0:02:20]} 33. Kxc2 {[%emt 0:00:05]} Ne5 {[%emt 0:00:47]} 34. Bb8 {[%emt 0:01:21]} Nc4 {[%emt 0:02:29]} 35. Nc7+ {[%emt 0:00:33]} Rxc7 {[%emt 0:00:06]} 36. Qxc7 {[%emt 0:00:11]} Qxc7 {[%emt 0:00:15]} 37. Bxc7 {[%emt 0:00:05]} Kb7 {[%emt 0:02:12]} 38. Nb5 {[%emt 0:00:17]} Rc8 {[%emt 0:00:35]} 39. Rh7 {[%emt 0:00:18]} Ne5 {[%emt 0:00:09]} 40. g6 {[%emt 0:00:00]} Nxg6 {[%emt 0:00:00]} 41. Rxf7 {[%emt 0:00:56]} Ka6 {[%emt 0:15:10]} 42. Kb3 {[%emt 0:14:41]} Rf8 {[%emt 0:00:12]} 43. Rg7 {[%emt 0:00:22]} Rf3+ {[%emt 0:00:03]} 44. Ka2 {[%emt 0:01:02]} Rg3 {[%emt 0:00:11]} 45. Nxd6 {[%emt 0:09:07]} Rg4 {[%emt 0:00:18]} 46. Kb3 {[%emt 0:01:16]} Rb4+ {[%emt 0:00:49]} 47. Ka3 {[%emt 0:01:16]} Rd4 {[%emt 0:03:39]} 48. Rxg6 {[%emt 0:00:08]} Bxd6+ {[%emt 0:00:03]} 49. Bxd6 {[%emt 0:00:07]} Rxd6 {[%emt 0:00:03]} 50. Kb3 {[%emt 0:00:37]} 1/2-1/2